[Event "Early-Titled-Tuesday-Blitz-August-29-2023"]
[Site "Chess.com"]
[Date "2023.08.29"]
[Round "9"]
[White "queen_iryna"]
[Black "Chessdreamer2020"]
[Result "0-1"]
[WhiteElo "2333"]
[BlackElo "2553"]
[TimeControl "180+1"]
[EndTime "9:43:02 PDT"]
[Termination "Chessdreamer2020 won by resignation"]

1. e4 {[%clk 0:03:00.9]} 1... d6 {[%clk 0:02:59.2]} 2. d4 {[%clk 0:02:55.6]}
2... Nf6 {[%clk 0:02:59.6]} 3. Nc3 {[%clk 0:02:56.5]} 3... c6 {[%clk 0:02:59.9]}
4. Nf3 {[%clk 0:02:54.9]} 4... Bg4 {[%clk 0:02:59.9]} 5. Be2 {[%clk 0:02:49.4]}
5... e6 {[%clk 0:02:59.9]} 6. O-O {[%clk 0:02:47.3]} 6... d5 {[%clk 0:03:00.2]}
7. e5 {[%clk 0:02:46.4]} 7... Nfd7 {[%clk 0:02:59.9]} 8. h3 {[%clk 0:02:46.2]}
8... Bxf3 {[%clk 0:02:59.7]} 9. Bxf3 {[%clk 0:02:46.3]} 9... c5 {[%clk
0:03:00.6]} 10. Nb5 {[%clk 0:02:42.9]} 10... a6 {[%clk 0:02:53.9]} 11. Nd6+
{[%clk 0:02:42.5]} 11... Bxd6 {[%clk 0:02:53.5]} 12. exd6 {[%clk 0:02:43.4]}
12... c4 {[%clk 0:02:36.9]} 13. b3 {[%clk 0:02:27.6]} 13... b5 {[%clk
0:02:36.2]} 14. a4 {[%clk 0:02:23.6]} 14... Nc6 {[%clk 0:02:36.4]} 15. axb5
{[%clk 0:02:20.7]} 15... axb5 {[%clk 0:02:37.3]} 16. Rxa8 {[%clk 0:02:20.2]}
16... Qxa8 {[%clk 0:02:38.2]} 17. bxc4 {[%clk 0:02:20.3]} 17... bxc4 {[%clk
0:02:38.2]} 18. Bxd5 {[%clk 0:02:01]} 18... exd5 {[%clk 0:02:32.4]} 19. Qg4
{[%clk 0:02:01.5]} 19... g6 {[%clk 0:02:05.8]} 20. Re1+ {[%clk 0:02:00.3]} 20...
Kd8 {[%clk 0:02:06]} 21. Bg5+ {[%clk 0:01:56.2]} 21... Kc8 {[%clk 0:01:53.8]}
22. Be7 {[%clk 0:01:43.5]} 22... Qa5 {[%clk 0:01:44.5]} 23. Rb1 {[%clk
0:01:40.7]} 23... f5 {[%clk 0:01:38.3]} 24. Qe2 {[%clk 0:01:34.3]} 24... Nxd4
{[%clk 0:01:27.8]} 25. Qd1 {[%clk 0:01:24.7]} 25... Nc6 {[%clk 0:01:20]} 26. Ra1
{[%clk 0:01:24.6]} 26... Qb5 {[%clk 0:01:13.6]} 27. Rb1 {[%clk 0:01:13]} 27...
Qc5 {[%clk 0:01:08.7]} 28. Qc1 {[%clk 0:01:11.4]} 28... Nxe7 {[%clk 0:00:54.3]}
29. Qb2 {[%clk 0:01:09.1]} 29... Re8 {[%clk 0:00:39.7]} 30. Qb7+ {[%clk
0:01:05.5]} 30... Kd8 {[%clk 0:00:39.5]} 31. dxe7+ {[%clk 0:01:00.8]} 31... Rxe7
{[%clk 0:00:39.3]} 32. Qa8+ {[%clk 0:00:59.6]} 32... Qc8 {[%clk 0:00:39]} 33.
Qxd5 {[%clk 0:00:59.1]} 33... Ke8 {[%clk 0:00:37.7]} 34. Qd6 {[%clk 0:00:48.7]}
34... Kf7 {[%clk 0:00:31.8]} 35. g3 {[%clk 0:00:45.7]} 35... Qc5 {[%clk
0:00:31.1]} 36. Qd2 {[%clk 0:00:39.6]} 36... Ne5 {[%clk 0:00:29.8]} 37. Qf4
{[%clk 0:00:32.3]} 37... Qd5 {[%clk 0:00:27.3]} 38. h4 {[%clk 0:00:22]} 38...
Nf3+ {[%clk 0:00:27.1]} 39. Kf1 {[%clk 0:00:18.2]} 39... Nd2+ {[%clk 0:00:25.3]}
0-1

[Event "Early-Titled-Tuesday-Blitz-August-29-2023"]
[Site "Chess.com"]
[Date "2023.08.29"]
[Round "9"]
[White "expii"]
[Black "GM_shahin"]
[Result "0-1"]
[WhiteElo "2237"]
[BlackElo "2704"]
[TimeControl "180+1"]
[EndTime "9:43:03 PDT"]
[Termination "GM_shahin won by checkmate"]

1. e4 {[%clk 0:03:00.9]} 1... c6 {[%clk 0:00:35.9]} 2. d4 {[%clk 0:02:58.1]}
2... d5 {[%clk 0:00:36.8]} 3. f3 {[%clk 0:02:58.2]} 3... dxe4 {[%clk 0:00:36.9]}
4. fxe4 {[%clk 0:02:59.1]} 4... e5 {[%clk 0:00:37.6]} 5. Nf3 {[%clk 0:02:59.2]}
5... exd4 {[%clk 0:00:38.1]} 6. Bc4 {[%clk 0:02:58.1]} 6... Be6 {[%clk
0:00:31.8]} 7. Bxe6 {[%clk 0:02:52.2]} 7... fxe6 {[%clk 0:00:32.7]} 8. Qxd4
{[%clk 0:02:45.9]} 8... Qxd4 {[%clk 0:00:30.7]} 9. Nxd4 {[%clk 0:02:46.8]} 9...
e5 {[%clk 0:00:31]} 10. Nf3 {[%clk 0:02:45.8]} 10... Nd7 {[%clk 0:00:31]} 11.
O-O {[%clk 0:02:44.4]} 11... Ngf6 {[%clk 0:00:31.4]} 12. Nc3 {[%clk 0:02:44]}
12... Bb4 {[%clk 0:00:31.8]} 13. Re1 {[%clk 0:02:40.6]} 13... Bxc3 {[%clk
0:00:31.5]} 14. bxc3 {[%clk 0:02:41.5]} 14... O-O {[%clk 0:00:30.7]} 15. Bg5
{[%clk 0:02:36.4]} 15... Rfe8 {[%clk 0:00:30.1]} 16. Rad1 {[%clk 0:02:34.7]}
16... h6 {[%clk 0:00:30.4]} 17. Bxf6 {[%clk 0:02:26.5]} 17... Nxf6 {[%clk
0:00:31.3]} 18. Rb1 {[%clk 0:02:25.5]} 18... b6 {[%clk 0:00:31.5]} 19. Rbd1
{[%clk 0:02:25.5]} 19... Kf7 {[%clk 0:00:30.4]} 20. Rd6 {[%clk 0:02:23.6]} 20...
Rac8 {[%clk 0:00:31.1]} 21. c4 {[%clk 0:02:21.5]} 21... Ke7 {[%clk 0:00:31.3]}
22. Rd3 {[%clk 0:02:18.8]} 22... Ke6 {[%clk 0:00:31.6]} 23. Red1 {[%clk
0:02:15.6]} 23... Nxe4 {[%clk 0:00:31.2]} 24. Re1 {[%clk 0:02:08.6]} 24... Nc5
{[%clk 0:00:25.2]} 25. Rxe5+ {[%clk 0:02:07.1]} 25... Kf7 {[%clk 0:00:25.8]} 26.
Rde3 {[%clk 0:02:04.3]} 26... Rxe5 {[%clk 0:00:24.5]} 27. Nxe5+ {[%clk
0:02:02.9]} 27... Kf6 {[%clk 0:00:25.1]} 28. Nf3 {[%clk 0:02:00.3]} 28... Rd8
{[%clk 0:00:24.9]} 29. h3 {[%clk 0:01:58.2]} 29... Rd1+ {[%clk 0:00:25.4]} 30.
Kh2 {[%clk 0:01:58.3]} 30... g5 {[%clk 0:00:25.8]} 31. Re8 {[%clk 0:01:57.7]}
31... Ra1 {[%clk 0:00:25.6]} 32. Rc8 {[%clk 0:01:53.8]} 32... Rxa2 {[%clk
0:00:26]} 33. Rxc6+ {[%clk 0:01:53.7]} 33... Kg7 {[%clk 0:00:26.7]} 34. Rc7+
{[%clk 0:01:52.8]} 34... Kg6 {[%clk 0:00:27.3]} 35. Ne5+ {[%clk 0:01:52.3]}
35... Kf5 {[%clk 0:00:27.6]} 36. Ng4 {[%clk 0:01:50.2]} 36... h5 {[%clk
0:00:27.6]} 37. Ne3+ {[%clk 0:01:48.4]} 37... Ke4 {[%clk 0:00:27.7]} 38. Nd5
{[%clk 0:01:47.5]} 38... Rxc2 {[%clk 0:00:27.8]} 39. Rxa7 {[%clk 0:01:46.2]}
39... b5 {[%clk 0:00:24.3]} 40. Nf6+ {[%clk 0:01:17.8]} 40... Kf5 {[%clk
0:00:22.6]} 41. Rc7 {[%clk 0:01:10.7]} 41... Rxc4 {[%clk 0:00:20.4]} 42. Nd7
{[%clk 0:01:09.2]} 42... Ne4 {[%clk 0:00:18.3]} 43. Rb7 {[%clk 0:01:07.4]} 43...
b4 {[%clk 0:00:18.7]} 44. Nb6 {[%clk 0:01:06]} 44... Rd4 {[%clk 0:00:19.4]} 45.
Na4 {[%clk 0:01:03.3]} 45... h4 {[%clk 0:00:19.6]} 46. Rb5+ {[%clk 0:01:02.6]}
46... Kf4 {[%clk 0:00:19.7]} 47. Nc5 {[%clk 0:01:01.8]} 47... Nxc5 {[%clk
0:00:16.4]} 48. Rxc5 {[%clk 0:01:02.7]} 48... b3 {[%clk 0:00:15.1]} 49. Rb5
{[%clk 0:01:01.8]} 49... Rd3 {[%clk 0:00:15.2]} 50. Rb4+ {[%clk 0:01:01.8]}
50... Ke3 {[%clk 0:00:15.5]} 51. Rb5 {[%clk 0:01:02.4]} 51... Kd2 {[%clk
0:00:15.1]} 52. Rxg5 {[%clk 0:01:02]} 52... b2 {[%clk 0:00:15.8]} 53. Rb5 {[%clk
0:01:02.1]} 53... Kc2 {[%clk 0:00:16.4]} 54. Rc5+ {[%clk 0:01:02]} 54... Rc3
{[%clk 0:00:16.6]} 55. Rb5 {[%clk 0:01:02.2]} 55... Rb3 {[%clk 0:00:17.2]} 56.
Rc5+ {[%clk 0:01:02.6]} 56... Kd3 {[%clk 0:00:17.5]} 57. Rd5+ {[%clk 0:01:02.9]}
57... Ke4 {[%clk 0:00:18]} 58. Rd1 {[%clk 0:01:03.1]} 58... b1=Q {[%clk
0:00:18.9]} 59. Rxb1 {[%clk 0:01:03.7]} 59... Rxb1 {[%clk 0:00:19.8]} 60. g4
{[%clk 0:01:03.9]} 60... Rb2+ {[%clk 0:00:20.5]} 61. Kh1 {[%clk 0:01:04.1]}
61... Kf3 {[%clk 0:00:21.4]} 62. Kg1 {[%clk 0:01:02.6]} 62... Kg3 {[%clk
0:00:21.6]} 63. Kf1 {[%clk 0:01:03.2]} 63... Kxh3 {[%clk 0:00:22.5]} 64. Ke1
{[%clk 0:01:03.2]} 64... Kxg4 {[%clk 0:00:23.4]} 65. Kd1 {[%clk 0:01:04.1]}
65... h3 {[%clk 0:00:24.2]} 66. Kc1 {[%clk 0:01:05]} 66... Rg2 {[%clk
0:00:24.6]} 67. Kb1 {[%clk 0:01:05.3]} 67... h2 {[%clk 0:00:25.5]} 68. Kc1
{[%clk 0:01:06.2]} 68... h1=Q# {[%clk 0:00:26.4]} 0-1

[Event "Early-Titled-Tuesday-Blitz-August-29-2023"]
[Site "Chess.com"]
[Date "2023.08.29"]
[Round "9"]
[White "LeoLV10"]
[Black "Djager97"]
[Result "1-0"]
[WhiteElo "2501"]
[BlackElo "2589"]
[TimeControl "180+1"]
[EndTime "9:43:06 PDT"]
[Termination "LeoLV10 won on time"]

1. e4 {[%clk 0:03:00.9]} 1... e5 {[%clk 0:02:59.6]} 2. Nf3 {[%clk 0:02:58.5]}
2... Nc6 {[%clk 0:03:00.1]} 3. Bb5 {[%clk 0:02:58.1]} 3... a6 {[%clk 0:03:00.1]}
4. Ba4 {[%clk 0:02:58.7]} 4... Nf6 {[%clk 0:03:00]} 5. O-O {[%clk 0:02:56.2]}
5... b5 {[%clk 0:03:00.4]} 6. Bb3 {[%clk 0:02:51.5]} 6... Bc5 {[%clk 0:03:00.9]}
7. c3 {[%clk 0:02:50.6]} 7... d6 {[%clk 0:03:00.8]} 8. Re1 {[%clk 0:02:49.1]}
8... O-O {[%clk 0:02:53.9]} 9. h3 {[%clk 0:02:48.7]} 9... Bb6 {[%clk 0:02:51.9]}
10. d4 {[%clk 0:02:47.6]} 10... Re8 {[%clk 0:02:48.6]} 11. a4 {[%clk 0:02:44.5]}
11... Bb7 {[%clk 0:02:44.5]} 12. d5 {[%clk 0:02:03.9]} 12... Ne7 {[%clk
0:02:41.9]} 13. Nbd2 {[%clk 0:02:00.9]} 13... Ng6 {[%clk 0:02:41.4]} 14. Nf1
{[%clk 0:02:00.8]} 14... Nh5 {[%clk 0:02:37.2]} 15. Bg5 {[%clk 0:01:57.6]} 15...
f6 {[%clk 0:02:25.2]} 16. Be3 {[%clk 0:01:57.2]} 16... Bxe3 {[%clk 0:02:12]} 17.
fxe3 {[%clk 0:01:58.1]} 17... f5 {[%clk 0:01:01.2]} 18. exf5 {[%clk 0:01:57.3]}
18... Nh4 {[%clk 0:00:52.6]} 19. e4 {[%clk 0:01:03.8]} 19... Nf4 {[%clk
0:00:51.9]} 20. Nxh4 {[%clk 0:00:57.5]} 20... Qxh4 {[%clk 0:00:52.8]} 21. Qf3
{[%clk 0:00:46.6]} 21... g6 {[%clk 0:00:33.9]} 22. fxg6 {[%clk 0:00:42.9]} 22...
hxg6 {[%clk 0:00:22.6]} 23. Qg3 {[%clk 0:00:42.5]} 23... Qh5 {[%clk 0:00:18.2]}
24. Bd1 {[%clk 0:00:36.8]} 24... Qh6 {[%clk 0:00:16.1]} 25. Bg4 {[%clk
0:00:36.5]} 25... Rf8 {[%clk 0:00:12.6]} 26. axb5 {[%clk 0:00:34.9]} 26... axb5
{[%clk 0:00:12.5]} 27. Rxa8 {[%clk 0:00:35.6]} 27... Rxa8 {[%clk 0:00:11.3]} 28.
Kh2 {[%clk 0:00:34.2]} 28... Ra2 {[%clk 0:00:10.8]} 29. Rb1 {[%clk 0:00:27.6]}
29... b4 {[%clk 0:00:10.8]} 30. cxb4 {[%clk 0:00:25.2]} 30... Ba6 {[%clk
0:00:11.4]} 31. Qb3 {[%clk 0:00:15.8]} 31... Bxf1 {[%clk 0:00:05.2]} 32. Rxf1
{[%clk 0:00:16.7]} 32... Ra8 {[%clk 0:00:04.9]} 33. g3 {[%clk 0:00:13.5]} 33...
Nh5 {[%clk 0:00:02.2]} 34. Qf3 {[%clk 0:00:12.6]} 1-0

[Event "Early-Titled-Tuesday-Blitz-August-29-2023"]
[Site "Chess.com"]
[Date "2023.08.29"]
[Round "9"]
[White "GeorgiosSouleidis"]
[Black "fastestmindalive"]
[Result "0-1"]
[WhiteElo "2567"]
[BlackElo "2737"]
[TimeControl "180+1"]
[EndTime "9:43:08 PDT"]
[Termination "fastestmindalive won on time"]

1. e4 {[%clk 0:03:00.9]} 1... c5 {[%clk 0:02:58.5]} 2. Nf3 {[%clk 0:03:00.5]}
2... d6 {[%clk 0:02:41]} 3. Bc4 {[%clk 0:02:59]} 3... Nc6 {[%clk 0:02:36.1]} 4.
O-O {[%clk 0:02:58.5]} 4... g6 {[%clk 0:02:29.6]} 5. Re1 {[%clk 0:02:58.4]} 5...
Bg7 {[%clk 0:02:29.1]} 6. c3 {[%clk 0:02:58.9]} 6... Nf6 {[%clk 0:02:19.4]} 7.
d4 {[%clk 0:02:44.2]} 7... O-O {[%clk 0:02:06]} 8. d5 {[%clk 0:02:38.1]} 8...
Ne5 {[%clk 0:01:50.3]} 9. Nxe5 {[%clk 0:02:38]} 9... dxe5 {[%clk 0:01:51.2]} 10.
a4 {[%clk 0:02:34.2]} 10... Ne8 {[%clk 0:01:49.2]} 11. Be3 {[%clk 0:02:31.1]}
11... Nd6 {[%clk 0:01:48.4]} 12. Bd3 {[%clk 0:02:22.9]} 12... b6 {[%clk
0:01:48.5]} 13. Nd2 {[%clk 0:02:16.5]} 13... f5 {[%clk 0:01:47.6]} 14. f3 {[%clk
0:02:16.9]} 14... e6 {[%clk 0:01:34.8]} 15. dxe6 {[%clk 0:01:57.4]} 15... Bxe6
{[%clk 0:01:33.7]} 16. Qe2 {[%clk 0:01:57.8]} 16... Bf6 {[%clk 0:01:21.1]} 17.
Rad1 {[%clk 0:01:52.1]} 17... Bg5 {[%clk 0:01:19.8]} 18. Bxg5 {[%clk 0:01:23.4]}
18... Qxg5 {[%clk 0:01:19.1]} 19. exf5 {[%clk 0:01:18.4]} 19... Bxf5 {[%clk
0:01:10.8]} 20. Bxf5 {[%clk 0:00:52]} 20... Rxf5 {[%clk 0:01:00.3]} 21. Ne4
{[%clk 0:00:35.9]} 21... Nxe4 {[%clk 0:00:57.4]} 22. Qxe4 {[%clk 0:00:36.8]}
22... Raf8 {[%clk 0:00:56.4]} 23. Rd3 {[%clk 0:00:35.2]} 23... R8f7 {[%clk
0:00:45.1]} 24. a5 {[%clk 0:00:34.6]} 24... bxa5 {[%clk 0:00:43.6]} 25. h3
{[%clk 0:00:21.9]} 25... Kg7 {[%clk 0:00:40.4]} 26. Re2 {[%clk 0:00:20.5]} 26...
Qc1+ {[%clk 0:00:35]} 27. Kh2 {[%clk 0:00:19.9]} 27... Qf4+ {[%clk 0:00:32.9]}
28. Kg1 {[%clk 0:00:15.9]} 28... c4 {[%clk 0:00:26]} 29. Rd5 {[%clk 0:00:12.6]}
29... Qg3 {[%clk 0:00:26.2]} 30. Rf2 {[%clk 0:00:09.2]} 30... a4 {[%clk
0:00:20.1]} 31. Rb5 {[%clk 0:00:06.8]} 31... Rd7 {[%clk 0:00:16]} 32. Rb7 {[%clk
0:00:06]} 32... Rff7 {[%clk 0:00:15.1]} 33. Rxd7 {[%clk 0:00:01.8]} 33... Rxd7
{[%clk 0:00:16]} 34. Rf1 {[%clk 0:00:02]} 34... Rd2 {[%clk 0:00:15.1]} 0-1

[Event "Early-Titled-Tuesday-Blitz-August-29-2023"]
[Site "Chess.com"]
[Date "2023.08.29"]
[Round "9"]
[White "knightinshiningarmour16"]
[Black "Maluco_do_Natal_00"]
[Result "1-0"]
[WhiteElo "2125"]
[BlackElo "1927"]
[TimeControl "180+1"]
[EndTime "9:43:08 PDT"]
[Termination "knightinshiningarmour16 won on time"]

1. d4 {[%clk 0:02:58]} 1... d5 {[%clk 0:02:59.6]} 2. c4 {[%clk 0:02:56.3]} 2...
c6 {[%clk 0:02:58.8]} 3. Nc3 {[%clk 0:02:52.1]} 3... Nf6 {[%clk 0:02:58.8]} 4.
Nf3 {[%clk 0:02:51.6]} 4... dxc4 {[%clk 0:02:58.2]} 5. a4 {[%clk 0:02:41.6]}
5... Bf5 {[%clk 0:02:57.2]} 6. e3 {[%clk 0:02:35.8]} 6... Nbd7 {[%clk 0:02:57]}
7. Bxc4 {[%clk 0:02:35]} 7... e6 {[%clk 0:02:57.4]} 8. O-O {[%clk 0:02:33.8]}
8... Bb4 {[%clk 0:02:57.8]} 9. Bd3 {[%clk 0:02:31.4]} 9... Bxd3 {[%clk
0:02:50.1]} 10. Qxd3 {[%clk 0:02:32.3]} 10... O-O {[%clk 0:02:46.1]} 11. Rd1
{[%clk 0:02:25.1]} 11... a5 {[%clk 0:02:34.9]} 12. Ne4 {[%clk 0:02:13]} 12...
Nxe4 {[%clk 0:02:31.4]} 13. Qxe4 {[%clk 0:02:13.9]} 13... Qf6 {[%clk 0:02:01.5]}
14. Bd2 {[%clk 0:02:10.3]} 14... Nb6 {[%clk 0:01:47.9]} 15. Bxb4 {[%clk
0:02:02.9]} 15... axb4 {[%clk 0:01:47.8]} 16. b3 {[%clk 0:02:01.9]} 16... Nd5
{[%clk 0:01:44]} 17. Qc2 {[%clk 0:01:51.2]} 17... Rfd8 {[%clk 0:01:29.4]} 18.
Ne5 {[%clk 0:01:48.1]} 18... Qh4 {[%clk 0:01:20.2]} 19. Rdc1 {[%clk 0:01:38.8]}
19... f6 {[%clk 0:01:18.6]} 20. Nc4 {[%clk 0:01:37.5]} 20... Ne7 {[%clk
0:00:43.7]} 21. Qd2 {[%clk 0:01:23.1]} 21... c5 {[%clk 0:00:42.6]} 22. Qe1
{[%clk 0:01:16]} 22... cxd4 {[%clk 0:00:36.7]} 23. Qxb4 {[%clk 0:01:13.7]} 23...
dxe3 {[%clk 0:00:34.4]} 24. Qxe7 {[%clk 0:01:08.8]} 24... Qxf2+ {[%clk
0:00:18.9]} 25. Kh1 {[%clk 0:01:07.9]} 25... Re8 {[%clk 0:00:14.1]} 26. Qxb7
{[%clk 0:01:05.5]} 26... Rab8 {[%clk 0:00:12.7]} 27. Qf3 {[%clk 0:01:04.5]}
27... Rxb3 {[%clk 0:00:12.7]} 28. Qxf2 {[%clk 0:01:02.2]} 28... exf2 {[%clk
0:00:13.6]} 29. Rc2 {[%clk 0:01:01.4]} 29... Rb4 {[%clk 0:00:10]} 30. Nd2 {[%clk
0:00:49.6]} 30... Ra8 {[%clk 0:00:09.5]} 31. Rca2 {[%clk 0:00:43.7]} 31... e5
{[%clk 0:00:06.1]} 32. g3 {[%clk 0:00:42.7]} 32... e4 {[%clk 0:00:05.6]} 33. Kg2
{[%clk 0:00:42.1]} 33... e3 {[%clk 0:00:05.9]} 34. Nf3 {[%clk 0:00:41.2]} 34...
g5 {[%clk 0:00:05.2]} 35. a5 {[%clk 0:00:38.1]} 35... g4 {[%clk 0:00:05.1]} 36.
Nh4 {[%clk 0:00:37.9]} 36... Re4 {[%clk 0:00:03.9]} 37. a6 {[%clk 0:00:36.7]}
37... e2 {[%clk 0:00:03.9]} 38. Kxf2 {[%clk 0:00:36.6]} 38... Rxa6 {[%clk
0:00:02.7]} 39. Rxa6 {[%clk 0:00:35.7]} 1-0

[Event "Early-Titled-Tuesday-Blitz-August-29-2023"]
[Site "Chess.com"]
[Date "2023.08.29"]
[Round "9"]
[White "Mmukka"]
[Black "tteshan"]
[Result "1-0"]
[WhiteElo "2447"]
[BlackElo "2558"]
[TimeControl "180+1"]
[EndTime "9:43:16 PDT"]
[Termination "Mmukka won by resignation"]

1. e4 {[%clk 0:03:00.4]} 1... c5 {[%clk 0:03:00.6]} 2. Nf3 {[%clk 0:03:00.2]}
2... Nc6 {[%clk 0:03:01.3]} 3. d4 {[%clk 0:03:00.7]} 3... cxd4 {[%clk
0:03:02.2]} 4. Nxd4 {[%clk 0:03:01.4]} 4... g6 {[%clk 0:03:02.8]} 5. Nc3 {[%clk
0:03:01.8]} 5... Bg7 {[%clk 0:03:02.8]} 6. Nxc6 {[%clk 0:02:59.2]} 6... bxc6
{[%clk 0:03:02.6]} 7. Bc4 {[%clk 0:02:59.5]} 7... d6 {[%clk 0:02:49.7]} 8. O-O
{[%clk 0:02:57.9]} 8... Nf6 {[%clk 0:02:49.5]} 9. Re1 {[%clk 0:02:55]} 9... O-O
{[%clk 0:02:37]} 10. h3 {[%clk 0:02:52]} 10... Nd7 {[%clk 0:02:36.3]} 11. Be3
{[%clk 0:02:42.4]} 11... Qa5 {[%clk 0:02:32.4]} 12. Bd4 {[%clk 0:02:26.6]} 12...
Ne5 {[%clk 0:02:20.3]} 13. Bb3 {[%clk 0:02:25.4]} 13... Rb8 {[%clk 0:01:54]} 14.
f4 {[%clk 0:02:23.1]} 14... Nd7 {[%clk 0:01:54.5]} 15. Bxg7 {[%clk 0:02:22.8]}
15... Kxg7 {[%clk 0:01:55.4]} 16. Qd4+ {[%clk 0:02:20.1]} 16... Kg8 {[%clk
0:01:54.1]} 17. Rad1 {[%clk 0:02:19.7]} 17... Qc5 {[%clk 0:01:52.6]} 18. Kf2
{[%clk 0:01:44.4]} 18... Rb4 {[%clk 0:01:48.4]} 19. Qxc5 {[%clk 0:01:42.9]}
19... Nxc5 {[%clk 0:01:49.3]} 20. Kf3 {[%clk 0:01:41]} 20... a5 {[%clk
0:01:24.2]} 21. Rb1 {[%clk 0:01:35.1]} 21... a4 {[%clk 0:01:17.8]} 22. a3 {[%clk
0:01:35.2]} 22... Rd4 {[%clk 0:01:17.8]} 23. Ba2 {[%clk 0:01:31]} 23... Ba6
{[%clk 0:01:10.2]} 24. Rbd1 {[%clk 0:01:23.4]} 24... Rxd1 {[%clk 0:01:07.6]} 25.
Rxd1 {[%clk 0:01:24.3]} 25... Rb8 {[%clk 0:01:08.1]} 26. Rb1 {[%clk 0:01:20.7]}
26... Kg7 {[%clk 0:01:05]} 27. Ke3 {[%clk 0:01:20.2]} 27... f5 {[%clk
0:01:00.2]} 28. exf5 {[%clk 0:01:17.5]} 28... gxf5 {[%clk 0:01:01.1]} 29. b4
{[%clk 0:01:13.2]} 29... axb3 {[%clk 0:00:58.9]} 30. cxb3 {[%clk 0:01:13.7]}
30... Kf6 {[%clk 0:00:47.9]} 31. b4 {[%clk 0:01:13.5]} 31... Nd7 {[%clk
0:00:38.4]} 32. a4 {[%clk 0:01:10.4]} 32... e5 {[%clk 0:00:33.5]} 33. b5 {[%clk
0:01:08]} 33... cxb5 {[%clk 0:00:25]} 34. Nd5+ {[%clk 0:01:08.1]} 34... Kg7
{[%clk 0:00:23.2]} 35. Nc7 {[%clk 0:00:59]} 35... Rb6 {[%clk 0:00:13.7]} 36.
axb5 {[%clk 0:00:56.7]} 36... Bb7 {[%clk 0:00:12.5]} 37. Be6 {[%clk 0:00:52.7]}
37... Be4 {[%clk 0:00:07.1]} 38. Rb2 {[%clk 0:00:51.4]} 38... Nc5 {[%clk
0:00:07.3]} 39. Bd5 {[%clk 0:00:41.9]} 39... exf4+ {[%clk 0:00:07.5]} 40. Kd4
{[%clk 0:00:39.4]} 40... Kf6 {[%clk 0:00:06.2]} 41. Bxe4 {[%clk 0:00:37.4]}
41... Rb8 {[%clk 0:00:04.2]} 42. Nd5+ {[%clk 0:00:36.5]} 42... Ke6 {[%clk
0:00:04]} 43. Nxf4+ {[%clk 0:00:36.8]} 43... Kf6 {[%clk 0:00:04.5]} 44. Nd5+
{[%clk 0:00:36.4]} 44... Ke6 {[%clk 0:00:04.9]} 45. Bf3 {[%clk 0:00:36.9]} 45...
Rg8 {[%clk 0:00:03.9]} 46. Re2+ {[%clk 0:00:36.6]} 46... Kd7 {[%clk 0:00:03.9]}
47. Nf6+ {[%clk 0:00:36.7]} 1-0

[Event "Early-Titled-Tuesday-Blitz-August-29-2023"]
[Site "Chess.com"]
[Date "2023.08.29"]
[Round "9"]
[White "RobertoJBM"]
[Black "Zhigalko_Sergei"]
[Result "0-1"]
[WhiteElo "2822"]
[BlackElo "2942"]
[TimeControl "180+1"]
[EndTime "9:43:17 PDT"]
[Termination "Zhigalko_Sergei won by resignation"]

1. d4 {[%clk 0:02:49.6]} 1... Nf6 {[%clk 0:03:00]} 2. c4 {[%clk 0:02:49.1]} 2...
e6 {[%clk 0:03:00.5]} 3. Nf3 {[%clk 0:02:48.6]} 3... b6 {[%clk 0:02:57.5]} 4. g3
{[%clk 0:02:47.7]} 4... Ba6 {[%clk 0:02:57.6]} 5. Qa4 {[%clk 0:02:45.1]} 5...
Bb7 {[%clk 0:02:57.6]} 6. Bg2 {[%clk 0:02:45.4]} 6... c5 {[%clk 0:02:57.8]} 7.
O-O {[%clk 0:02:45.3]} 7... cxd4 {[%clk 0:02:57.9]} 8. Nxd4 {[%clk 0:02:46.2]}
8... Bxg2 {[%clk 0:02:58.6]} 9. Kxg2 {[%clk 0:02:47.1]} 9... Qc7 {[%clk
0:02:59.2]} 10. Rd1 {[%clk 0:02:46.5]} 10... a6 {[%clk 0:02:59.1]} 11. Nc3
{[%clk 0:02:44.3]} 11... Qb7+ {[%clk 0:02:59.1]} 12. f3 {[%clk 0:02:43.5]} 12...
Be7 {[%clk 0:02:59.1]} 13. Bg5 {[%clk 0:02:43]} 13... h6 {[%clk 0:02:39.2]} 14.
Bxf6 {[%clk 0:02:40.8]} 14... Bxf6 {[%clk 0:02:40.1]} 15. Ne4 {[%clk 0:02:40.8]}
15... Be7 {[%clk 0:02:40.3]} 16. Rd2 {[%clk 0:02:36.3]} 16... O-O {[%clk
0:02:39.2]} 17. Rc1 {[%clk 0:02:31.3]} 17... Rc8 {[%clk 0:02:38.7]} 18. Qd1
{[%clk 0:02:30]} 18... f5 {[%clk 0:02:18]} 19. Nf2 {[%clk 0:02:27.7]} 19... Bg5
{[%clk 0:02:18.1]} 20. b3 {[%clk 0:02:14.4]} 20... Bxd2 {[%clk 0:02:14.2]} 21.
Qxd2 {[%clk 0:02:15.3]} 21... Nc6 {[%clk 0:02:12.7]} 22. Rd1 {[%clk 0:02:12.6]}
22... Rd8 {[%clk 0:02:07.6]} 23. Qe3 {[%clk 0:02:04.8]} 23... Rac8 {[%clk
0:01:57.7]} 24. Nh3 {[%clk 0:01:52.4]} 24... b5 {[%clk 0:01:43.7]} 25. cxb5
{[%clk 0:01:46.1]} 25... Nxd4 {[%clk 0:01:35.8]} 26. Rxd4 {[%clk 0:01:40.8]}
26... Qxb5 {[%clk 0:01:30.2]} 27. Rd2 {[%clk 0:01:37.5]} 27... Qc5 {[%clk
0:01:26.5]} 28. Qd3 {[%clk 0:01:36.1]} 28... Qc3 {[%clk 0:01:25]} 29. Nf4 {[%clk
0:01:28.8]} 29... Qxd3 {[%clk 0:01:24.9]} 30. Nxd3 {[%clk 0:01:28.9]} 30... d6
{[%clk 0:01:11.1]} 31. Kf2 {[%clk 0:01:27.7]} 31... Kf7 {[%clk 0:01:11]} 32. Ke3
{[%clk 0:01:27.9]} 32... g5 {[%clk 0:01:07.1]} 33. Kd4 {[%clk 0:01:20.7]} 33...
Rc7 {[%clk 0:00:37.3]} 34. Nb2 {[%clk 0:01:10]} 34... e5+ {[%clk 0:00:28.2]} 35.
Kd3 {[%clk 0:01:09.2]} 35... d5 {[%clk 0:00:26.8]} 36. f4 {[%clk 0:01:02.6]}
36... gxf4 {[%clk 0:00:10]} 37. gxf4 {[%clk 0:01:02.6]} 37... d4 {[%clk
0:00:10.7]} 38. Nc4 {[%clk 0:00:56]} 38... e4+ {[%clk 0:00:10.2]} 39. Kc2 {[%clk
0:00:56.7]} 39... Ke6 {[%clk 0:00:09.3]} 40. e3 {[%clk 0:00:54.7]} 40... d3+
{[%clk 0:00:09]} 41. Kc3 {[%clk 0:00:54.9]} 41... Rg8 {[%clk 0:00:08.7]} 42. Kd4
{[%clk 0:00:52]} 42... Rg1 {[%clk 0:00:07.7]} 43. h4 {[%clk 0:00:44.1]} 43... h5
{[%clk 0:00:07.1]} 44. Rh2 {[%clk 0:00:42.9]} 44... Rd7+ {[%clk 0:00:05.1]} 45.
Kc3 {[%clk 0:00:41.1]} 45... Rc1+ {[%clk 0:00:05.1]} 46. Kb2 {[%clk 0:00:41.4]}
46... Re1 {[%clk 0:00:04.7]} 47. Kc3 {[%clk 0:00:41.5]} 47... Re2 {[%clk
0:00:04.7]} 48. Rh3 {[%clk 0:00:40.7]} 48... Rc2+ {[%clk 0:00:04.6]} 49. Kb4
{[%clk 0:00:41.2]} 49... Rxc4+ {[%clk 0:00:04]} 0-1